bitfinex/quotes_SOLUSD_20250604
["timestamp","ask_amount","ask_price","bid_price","bid_amount"]
[1748996796712,18.64964886,155.61,155.52,40.0]
[1748996796713,1.5869,155.61,155.52,40.0]
[1748996796917,14.55110967,155.58,155.53,14.55110967]
[1748996797519,14.55110967,155.57,155.53,14.55110967]
[1748996800315,14.55110967,155.57,155.52,54.55110967]
[1748996800542,14.55110967,155.56,155.52,40.0]
[1748996800743,14.55110967,155.55,155.52,40.0]
[1748996801123,14.55110967,155.54,155.52,40.0]
[1748996801544,14.55110967,155.54,155.53,39.98]
[1748996802628,14.55110967,155.54,155.49,25.13110967]
[1748996802629,14.55110967,155.54,155.49,10.58]
[1748996802844,14.55110967,155.51,155.5,51.92]
[1748996803060,14.55110967,155.51,155.5,39.98]
[1748996803224,14.55110967,155.51,155.45,26.74020967]
[1748996803419,26.0,155.55,155.45,26.74020967]
[1748996803420,14.55110967,155.49,155.45,26.74020967]
[1748996803721,14.55110967,155.49,155.46,39.98]
[1748996804142,14.55110967,155.5,155.46,39.98]
[1748996805854,27.5363,155.55,155.47,39.98]
[1748996806044,14.55110967,155.51,155.48,39.98]
[1748996806645,14.55110967,155.51,155.49,39.98]
[1748996807731,14.55110967,155.52,155.49,39.98]
[1748996808538,14.55110967,155.51,155.49,39.98]
[1748996809249,27.5363,155.55,155.49,39.98]
[1748996809451,14.55110967,155.52,155.49,39.98]
[1748996810750,14.55110967,155.5,155.45,12.1891]
[1748996811055,14.55110967,155.49,155.46,51.93]
[1748996811661,14.55110967,155.49,155.46,39.98]
[1748996811954,14.55110967,155.48,155.47,39.98]
[1748996813868,14.55110967,155.49,155.47,39.98]
[1748996816231,26.0,155.53,155.47,39.98]
[1748996816431,14.55110967,155.51,155.47,39.98]
[1748996817643,14.55110967,155.5,155.47,39.98]
[1748996819946,14.55110967,155.5,155.48,39.98]
[1748996820135,14.55110967,155.51,155.48,39.98]
[1748996820936,14.55110967,155.5,155.48,39.98]
[1748996821839,14.55110967,155.49,155.48,39.98]
[1748996822573,1.67846157,155.55,155.48,39.98]
[1748996822574,27.5363,155.55,155.48,39.98]
[1748996822871,14.55110967,155.52,155.48,39.98]
[1748996823074,14.55110967,155.51,155.48,39.98]
[1748996824371,14.55110967,155.5,155.48,39.98]
[1748996825505,14.55110967,155.51,155.48,39.98]
[1748996825644,14.55110967,155.52,155.48,39.98]
[1748996825978,27.5363,155.55,155.48,39.98]
[1748996825979,14.55110967,155.51,155.48,39.98]
[1748996826162,14.55110967,155.5,155.48,39.98]
[1748996826682,14.55110967,155.49,155.48,39.98]
[1748996827151,14.55110967,155.49,155.45,10.58]
[1748996827354,14.55110967,155.49,155.46,39.98]
[1748996830155,0.14216157,155.54,155.46,39.98]
[1748996830355,14.55110967,155.5,155.46,39.98]
[1748996830869,0.14216157,155.54,155.45,113.73110967]
[1748996830870,14.55110967,155.49,155.47,39.98]
[1748996831241,14.55110967,155.48,155.45,99.18]
[1748996831481,14.55110967,155.47,155.45,99.18]
[1748996831779,14.55110967,155.46,155.45,39.98]
[1748996832141,14.55110967,155.46,155.41,38.2215]
[1748996832345,14.55110967,155.43,155.42,20.83]
[1748996833073,14.55110967,155.43,155.34,14.55110967]
[1748996833246,14.55110967,155.43,155.35,20.83]
[1748996833247,14.55110967,155.37,155.35,20.83]
[1748996833580,14.55110967,155.36,155.35,20.83]
[1748996833781,14.55110967,155.36,155.32,12.1812]
[1748996833782,14.55110967,155.36,155.34,39.98]
[1748996833990,8.05256157,155.42,155.34,39.98]
[1748996833991,14.55110967,155.35,155.34,39.98]
[1748996834945,0.14216157,155.41,155.34,39.98]
[1748996835480,14.55110967,155.36,155.34,39.98]
[1748996836650,14.55110967,155.36,155.32,10.56]
[1748996836871,14.55110967,155.36,155.34,39.98]
[1748996837978,14.55110967,155.37,155.34,39.98]
[1748996840268,8.05256157,155.42,155.34,39.98]
[1748996840269,14.55110967,155.38,155.34,39.98]
[1748996843010,14.55110967,155.37,155.34,39.98]
[1748996845077,14.55110967,155.35,155.32,10.56]
[1748996845281,14.55110967,155.35,155.33,40.0]
[1748996845803,14.55110967,155.35,155.32,10.56]
[1748996845995,14.55110967,155.35,155.34,39.98]
[1748996848606,14.55110967,155.35,155.34,40.0]
[1748996849886,14.55110967,155.35,155.32,10.56]
[1748996850208,14.55110967,155.35,155.33,40.0]
[1748996850799,14.55110967,155.35,155.32,10.56]
[1748996851110,14.55110967,155.35,155.34,40.0]
[1748996854223,14.55110967,155.35,155.32,10.56]
[1748996854512,14.55110967,155.34,155.33,39.98]
[1748996855704,14.55110967,155.34,155.32,10.56]
[1748996855912,0.14216157,155.39,155.33,39.98]
[1748996856311,0.14216157,155.39,155.32,39.98]
[1748996856908,0.14216157,155.39,155.29,99.18]
[1748996857102,14.55110967,155.32,155.29,99.18]
[1748996857310,14.55110967,155.32,155.3,39.98]
[1748996858307,14.55110967,155.36,155.3,39.98]
[1748996858308,14.55110967,155.31,155.3,39.98]
[1748996858500,14.55110967,155.31,155.29,50.56]
[1748996858685,16.13060967,155.36,155.29,50.56]
[1748996858686,1.5795,155.36,155.29,39.98]
[1748996859016,14.55110967,155.31,155.29,39.98]
[1748996859601,14.55110967,155.3,155.25,10.56]
[1748996859783,14.55110967,155.28,155.26,60.83]
[1748996860094,14.55110967,155.28,155.26,39.98]
[1748996860415,14.55110967,155.29,155.26,39.98]
[1748996860584,14.55110967,155.29,155.25,10.56]
[1748996860917,14.55110967,155.29,155.26,39.98]
[1748996861492,14.55110967,155.28,155.26,39.98]
[1748996863292,14.55110967,155.28,155.27,40.0]
[1748996863999,14.55110967,155.29,155.27,40.0]
[1748996867588,14.55110967,155.28,155.25,10.56]
[1748996867923,14.55110967,155.28,155.26,40.0]
[1748996869697,14.55110967,155.28,155.25,10.56]
[1748996869897,14.55110967,155.28,155.26,40.0]
[1748996871699,14.55110967,155.28,155.25,10.56]
[1748996871929,14.55110967,155.28,155.27,40.0]
[1748996873198,14.55110967,155.29,155.27,40.0]
[1748996873798,14.55110967,155.28,155.27,40.0]
[1748996875414,14.55110967,155.28,155.26,39.98]
[1748996875839,14.55110967,155.27,155.26,39.98]
[1748996876210,14.55110967,155.27,155.22,55.56]
[1748996876412,14.55110967,155.26,155.23,60.83]
[1748996876633,14.55110967,155.26,155.23,20.85]
[1748996876835,14.55110967,155.25,155.24,39.98]
[1748996877027,14.55110967,155.25,155.21,12.1605]
[1748996877226,14.55110967,155.24,155.21,10.56]
[1748996877543,14.55110967,155.24,155.22,60.83]
[1748996878122,26.0,155.29,155.22,60.83]
[1748996878342,14.55110967,155.27,155.22,75.38110967]
[1748996878544,14.55110967,155.27,155.22,54.53110967]
[1748996879121,26.0,155.3,155.24,14.55110967]
[1748996879444,14.55110967,155.29,155.24,14.55110967]
[1748996879946,26.0,155.31,155.26,14.55110967]
[1748996880117,14.55110967,155.28,155.27,39.98]
[1748996880820,14.55110967,155.31,155.27,39.98]
[1748996881024,14.55110967,155.3,155.27,39.98]
[1748996881232,14.55110967,155.29,155.27,39.98]
[1748996881637,14.55110967,155.28,155.27,39.98]
[1748996881939,0.14216157,155.32,155.27,39.98]
[1748996882143,14.55110967,155.29,155.27,39.98]
[1748996882332,26.0,155.33,155.27,39.98]
[1748996882535,14.55110967,155.3,155.27,39.98]
[1748996886030,14.55110967,155.29,155.27,39.98]
[1748996886226,14.55110967,155.28,155.27,39.98]
[1748996886646,14.55110967,155.28,155.23,10.56]
[1748996886826,14.55110967,155.26,155.24,39.98]
[1748996887437,14.55110967,155.27,155.24,39.98]
[1748996888850,14.55110967,155.27,155.23,10.56]
[1748996889053,14.55110967,155.27,155.24,39.98]
[1748996893966,26.0,155.32,155.24,54.53110967]
[1748996894156,14.55110967,155.3,155.26,14.55110967]
[1748996894357,14.55110967,155.3,155.24,39.98]
[1748996894543,14.55110967,155.3,155.25,14.55110967]
[1748996896553,10.70216157,155.35,155.28,14.55110967]
[1748996896554,10.56,155.35,155.28,14.55110967]
[1748996896741,14.55110967,155.34,155.3,14.55110967]
[1748996897150,14.55110967,155.34,155.29,54.53110967]
[1748996897669,14.55110967,155.33,155.29,39.98]
[1748996898574,14.55110967,155.33,155.26,18.64964886]
[1748996898749,14.55110967,155.29,155.26,39.98]
[1748996899134,14.55110967,155.29,155.25,14.55110967]
[1748996899339,14.55110967,155.3,155.27,39.98]
[1748996900736,14.55110967,155.3,155.25,14.55110967]
[1748996900737,14.55110967,155.29,155.24,33.20075853]
[1748996900938,14.55110967,155.29,155.25,39.98]
[1748996901160,0.14216157,155.34,155.26,39.98]
[1748996901161,14.55110967,155.27,155.26,39.98]
[1748996901739,0.14216157,155.34,155.26,39.98]
[1748996901740,14.55110967,155.28,155.26,39.98]
[1748996905466,14.55110967,155.27,155.23,99.14]
[1748996905653,14.55110967,155.27,155.24,39.96]
[1748996906267,14.55110967,155.26,155.23,99.14]
[1748996906475,14.55110967,155.26,155.24,39.96]
[1748996906771,14.55110967,155.25,155.24,39.96]
[1748996906963,14.55110967,155.26,155.24,39.96]
[1748996908468,14.55110967,155.27,155.24,39.96]
[1748996910479,1.54,155.31,155.24,39.96]
[1748996910671,14.55110967,155.28,155.24,54.51110967]
[1748996911686,1.54,155.31,155.24,54.51110967]
[1748996911855,14.55110967,155.28,155.24,54.51110967]
[1748996912580,14.55110967,155.28,155.24,39.96]
[1748996915385,14.55110967,155.28,155.25,39.96]
[1748996915560,14.55110967,155.27,155.25,39.96]
[1748996915756,1.54,155.31,155.25,39.96]
[1748996915960,14.55110967,155.32,155.27,14.55110967]
[1748996916377,14.55110967,155.31,155.26,14.55110967]
[1748996919884,14.55110967,155.32,155.27,14.55110967]
[1748996922179,14.55110967,155.33,155.28,14.55110967]
[1748996923373,14.55110967,155.33,155.28,103.15110967]
[1748996923575,14.55110967,155.32,155.28,88.6]
[1748996930168,14.55110967,155.32,155.29,39.94]
[1748996932397,14.55110967,155.33,155.29,39.94]
[1748996932581,14.55110967,155.33,155.29,54.49110967]
[1748996934989,14.55110967,155.33,155.29,39.94]
[1748996935195,14.55110967,155.32,155.29,39.94]
[1748996938080,14.55110967,155.34,155.29,54.49110967]
[1748996938301,14.55110967,155.35,155.3,14.55110967]
[1748996938701,14.55110967,155.36,155.31,14.55110967]
[1748996939406,14.55110967,155.35,155.3,14.55110967]
[1748996939977,14.55110967,155.34,155.3,14.55110967]
[1748996942384,14.55110967,155.33,155.29,39.94]
[1748996942597,14.55110967,155.31,155.3,39.92]
[1748996943391,14.55110967,155.31,155.27,36.52]
[1748996943582,14.55110967,155.3,155.27,10.52]
[1748996943778,14.55110967,155.3,155.28,39.92]
[1748996943986,14.69327124,155.36,155.22,18.5906]
[1748996943987,14.55110967,155.29,155.22,18.5906]
[1748996944205,0.14216157,155.33,155.23,59.82]
[1748996944206,14.55110967,155.24,155.23,59.82]
[1748996944508,14.55110967,155.24,155.23,39.92]
[1748996945815,14.55110967,155.24,155.22,39.92]
[1748996945986,14.55110967,155.23,155.22,39.92]
[1748996946606,14.55110967,155.23,155.21,39.92]
[1748996947388,14.55110967,155.22,155.19,55.6]
[1748996947598,42.05240967,155.28,155.18,10.52]
[1748996947599,14.55110967,155.2,155.18,10.52]
[1748996947834,14.55110967,155.19,155.17,39.92]
[1748996948033,14.55110967,155.19,155.18,19.91]
[1748996948319,14.55110967,155.19,155.17,39.92]
[1748996948489,14.55110967,155.18,155.17,39.92]
[1748996948818,14.55110967,155.18,155.15,26.0]
[1748996949006,14.55110967,155.18,155.16,19.91]
[1748996949418,14.55110967,155.18,155.16,39.92]
[1748996949924,14.55110967,155.18,155.15,26.0]
[1748996950123,14.55110967,155.18,155.16,39.92]
[1748996950497,14.55110967,155.17,155.14,26.0]
[1748996950705,14.55110967,155.17,155.15,39.92]
[1748996951111,14.55110967,155.17,155.13,44.64964886]
[1748996951346,14.55110967,155.17,155.11,4.97613165]
[1748996951347,0.14216157,155.19,155.14,19.91]
[1748996951628,14.55110967,155.15,155.13,39.92]
[1748996951797,14.55110967,155.14,155.13,39.94]
[1748996953796,0.14216157,155.19,155.13,39.94]
[1748996954127,14.55110967,155.14,155.13,39.94]
[1748996956603,14.55110967,155.14,155.12,39.94]
[1748996956803,14.55110967,155.13,155.12,39.94]
[1748996957622,14.55110967,155.14,155.12,39.94]
[1748996957815,14.55110967,155.13,155.12,39.94]
[1748996960908,14.55110967,155.13,155.09,36.52]
[1748996961113,14.55110967,155.11,155.1,39.94]
[1748996961326,0.14216157,155.19,155.1,39.94]
[1748996961327,14.55110967,155.13,155.1,39.94]
[1748996961832,10.52,155.17,155.1,39.94]
[1748996961833,14.55110967,155.12,155.1,39.94]
[1748996963218,14.55110967,155.13,155.1,39.94]
[1748996963750,14.55110967,155.13,155.09,40.55110967]
[1748996963910,14.55110967,155.13,155.1,39.94]
[1748996964511,14.55110967,155.13,155.09,26.0]
[1748996964753,14.55110967,155.13,155.1,39.94]
[1748996967050,14.55110967,155.14,155.09,40.55110967]
[1748996967220,14.55110967,155.14,155.11,39.94]
[1748996967917,14.55110967,155.13,155.11,39.94]
[1748996969529,14.55110967,155.14,155.11,39.94]
[1748996970412,14.55110967,155.12,155.11,39.94]
[1748996972935,14.55110967,155.12,155.07,26.0]
[1748996973145,1.6096,155.16,155.03,146.14216157]
[1748996973146,14.55110967,155.09,155.08,39.94]
[1748996974329,14.55110967,155.1,155.08,39.94]
[1748996974542,14.55110967,155.09,155.07,39.94]
[1748996974845,1.6096,155.16,155.07,54.49110967]
[1748996975044,14.55110967,155.11,155.07,54.49110967]
[1748996975921,14.55110967,155.11,155.07,39.94]
[1748996977056,14.55110967,155.11,155.06,14.55110967]
[1748996977239,14.55110967,155.11,155.07,39.94]
[1748996978428,1.6096,155.16,155.08,39.94]
[1748996978429,14.55110967,155.1,155.08,39.94]
[1748996978747,14.55110967,155.1,155.07,26.0]
[1748996978748,14.55110967,155.09,155.07,88.6]
[1748996978924,14.55110967,155.09,155.07,128.54]
[1748996979417,14.55110967,155.1,155.07,128.54]
[1748996979813,14.55110967,155.09,155.07,128.54]
[1748996982530,14.55110967,155.09,155.07,39.94]
[1748996982724,14.55110967,155.08,155.07,39.94]
[1748996983447,14.55110967,155.08,155.04,99.12]
[1748996983622,14.55110967,155.07,155.06,39.94]
[1748996984153,14.55110967,155.08,155.06,39.94]
[1748996985228,14.55110967,155.07,155.06,39.94]
[1748996985951,14.55110967,155.07,155.04,99.12]
[1748996986261,14.55110967,155.07,155.05,39.94]
[1748996986422,14.55110967,155.07,155.04,10.52]
[1748996986620,14.55110967,155.05,155.01,14.55110967]
[1748996986845,14.55110967,155.05,155.02,39.94]
[1748996987226,1.5979,155.1,155.0,29.14964886]
[1748996987227,14.55110967,155.04,155.0,29.14964886]
[1748996987426,14.55110967,155.03,155.0,29.14964886]
[1748996987632,14.55110967,155.03,155.0,10.5]
[1748996987849,14.55110967,155.03,155.01,39.94]
[1748996988137,26.0,155.09,155.0,10.5]
[1748996988138,14.55110967,155.02,155.0,10.5]
[1748996988339,14.55110967,155.02,155.01,39.94]
[1748996989433,14.55110967,155.02,154.97,40.55110967]
[1748996989661,14.55110967,155.02,155.01,39.94]
[1748996990437,14.55110967,155.02,154.97,40.55110967]
[1748996990689,14.55110967,155.02,155.01,39.94]
[1748996991379,14.55110967,155.02,155.0,39.94]
[1748996991534,14.55110967,155.02,154.97,40.55110967]
[1748996991733,14.55110967,155.02,154.97,14.55110967]
[1748996991968,14.55110967,155.01,154.98,39.94]
[1748996992351,14.55110967,155.0,154.99,39.94]
[1748996992658,14.55110967,155.0,154.96,21.70701439]
[1748996992965,14.55110967,154.98,154.97,39.94]
[1748996993172,14.55110967,155.0,154.97,39.94]
[1748996993759,14.55110967,155.0,154.96,11.18701439]
[1748996994063,14.55110967,155.0,154.97,39.94]
[1748996994451,14.55110967,155.0,154.98,39.94]
[1748996994656,14.55110967,155.0,154.94,44.64964886]
[1748996994961,14.55110967,154.99,154.95,39.94]
[1748996995975,14.55110967,154.99,154.94,59.20075853]
[1748996996273,14.55110967,154.99,154.95,39.94]
[1748996997866,14.55110967,155.0,154.95,54.49110967]
[1748996999571,14.55110967,154.99,154.95,54.49110967]
[1748997000976,14.55110967,155.0,154.95,54.49110967]
[1748997001550,14.55110967,154.99,154.95,54.49110967]
[1748997002083,14.55110967,154.98,154.95,39.94]
[1748997002575,14.55110967,154.98,154.96,39.94]
[1748997003276,14.55110967,154.97,154.93,55.94432314]
[1748997003487,14.55110967,154.97,154.96,39.94]
[1748997004880,14.55110967,154.97,154.92,43.72075853]
[1748997005080,14.55110967,154.96,154.95,39.94]
[1748997005458,36.52,155.02,154.92,10.52]
[1748997005459,14.55110967,154.98,154.92,10.52]
[1748997005659,14.55110967,154.97,154.93,39.94]
[1748997006271,14.55110967,154.97,154.92,25.07110967]
[1748997006591,14.55110967,154.97,154.93,39.94]
[1748997006975,14.55110967,154.96,154.92,10.52]
[1748997007157,14.55110967,154.93,154.89,43.75206747]
[1748997007356,14.55110967,154.93,154.9,39.94]
[1748997007855,14.55110967,154.95,154.9,54.49110967]
[1748997008069,14.55110967,154.94,154.9,54.49110967]
[1748997008463,33.7383,154.99,154.9,54.49110967]
[1748997008664,14.55110967,154.95,154.9,54.49110967]
[1748997008870,14.55110967,154.94,154.9,39.94]
[1748997009460,14.55110967,154.94,154.9,54.49110967]
[1748997009791,33.7383,154.99,154.9,54.49110967]
[1748997009792,14.55110967,154.95,154.9,54.49110967]
[1748997010587,14.55110967,154.95,154.9,14.55110967]
[1748997010788,14.55110967,154.95,154.91,39.94]
[1748997011186,14.55110967,154.94,154.92,39.94]
[1748997011355,14.55110967,154.93,154.91,39.94]
[1748997011559,33.7383,154.99,154.87,14.55110967]
[1748997011560,14.55110967,154.92,154.87,14.55110967]
[1748997011781,14.55110967,154.91,154.88,39.94]
[1748997012081,14.55110967,154.9,154.89,39.94]
[1748997012267,14.55110967,154.9,154.88,39.94]
[1748997012462,14.55110967,154.9,154.85,18.64964886]
[1748997012689,14.55110967,154.9,154.88,39.94]
[1748997012896,14.55110967,154.89,154.84,29.14964886]
[1748997013066,14.55110967,154.88,154.84,10.5]
[1748997013391,14.55110967,154.89,154.84,25.05110967]
[1748997013565,14.55110967,154.88,154.85,39.94]
[1748997014186,14.55110967,154.89,154.84,25.05110967]
[1748997014374,14.55110967,154.89,154.85,54.49110967]
[1748997014771,14.55110967,154.89,154.85,39.94]
[1748997015072,40.55110967,154.86,154.81,0.8844242]
[1748997015271,14.55110967,154.82,154.81,0.8844242]
[1748997015674,48.70340967,154.88,154.81,0.8844242]
[1748997015860,14.55110967,154.82,154.81,0.8844242]
[1748997018166,14.69327124,154.82,154.81,0.8844242]
[1748997018373,48.71830967,154.82,154.81,0.8844242]
[1748997018597,42.07710967,154.82,154.81,0.8844242]
[1748997018970,1.526,154.82,154.81,0.8844242]
[1748997019201,14.55110967,154.82,154.81,0.8844242]
[1748997020675,40.69327124,154.82,154.81,0.8844242]
[1748997021082,40.69327124,154.82,154.71,8.86788006]
[1748997021083,26.0,154.79,154.71,8.86788006]
[1748997021267,26.0,154.79,154.71,2.55298006]
[1748997021268,14.55110967,154.72,154.71,2.55298006]
[1748997021469,14.55110967,154.72,154.71,4.97457364]
[1748997021664,14.55110967,154.72,154.71,4.97535304]
[1748997021869,14.55110967,154.72,154.71,2.55298006]
[1748997022106,29.38654248,154.72,154.71,2.55298006]
[1748997022310,29.38654248,154.72,154.58,1.5008]
[1748997022311,14.55110967,154.63,154.59,14.55110967]
[1748997022501,14.55110967,154.62,154.58,7.8157]
[1748997022674,26.0,154.68,154.59,14.55110967]
[1748997022873,26.0,154.68,154.58,7.8157]
[1748997022874,14.55110967,154.67,154.62,14.55110967]
[1748997023102,14.55110967,154.67,154.63,54.51110967]
[1748997023396,22.05550084,154.68,154.64,22.05550084]
[1748997023712,22.05550084,154.65,154.6,10.5]
[1748997024001,22.05550084,154.62,154.6,10.5]
[1748997024309,22.05550084,154.64,154.6,32.55550084]
[1748997024508,22.05550084,154.65,154.61,2.42323516]
[1748997024683,22.05550084,154.65,154.6,32.55550084]
[1748997024684,22.05550084,154.65,154.62,2.42325505]
[1748997024886,22.05550084,154.71,154.63,22.05550084]
[1748997024887,26.0,154.71,154.63,22.05550084]
[1748997025087,22.05550084,154.68,154.64,39.98]
[1748997025390,22.05550084,154.66,154.64,39.98]
[1748997025588,22.05550084,154.71,154.5,0.8844242]
[1748997025589,22.05550084,154.65,154.53,42.05550084]
[1748997025797,22.05550084,154.63,154.59,39.98]
[1748997026005,22.05550084,154.63,154.6,2.42328911]
[1748997026176,0.14216157,154.64,154.61,2.42330348]
[1748997026380,22.05550084,154.62,154.61,2.42330348]
[1748997026597,44.75316325,154.62,154.61,2.42359361]
[1748997026806,44.75316325,154.62,154.61,2.42362805]
[1748997027104,44.75316325,154.62,154.55,40.0]
[1748997027304,0.14216157,154.61,154.52,10.52]
[1748997027476,0.14216157,154.61,154.55,40.0]
[1748997027477,22.05550084,154.57,154.55,40.0]
[1748997027903,26.0,154.61,154.55,40.0]
[1748997027904,22.05550084,154.58,154.55,40.0]
[1748997028087,18.3737,154.68,154.58,18.64964886]
[1748997028406,22.05550084,154.63,154.58,24.95184886]
[1748997028612,22.05550084,154.61,154.58,6.3022]
[1748997028981,22.05550084,154.61,154.57,10.52]
[1748997029211,22.05550084,154.6,154.57,50.56]
[1748997029418,22.05550084,154.62,154.57,72.61550084]
[1748997029910,22.05550084,154.63,154.58,22.05550084]
[1748997030217,6.0559,154.75,154.63,18.64964886]
[1748997030402,22.05550084,154.75,154.7,22.05550084]
[1748997030737,22.05550084,154.73,154.69,40.32]
[1748997031285,22.05550084,154.74,154.69,40.32]
[1748997031478,22.05550084,154.74,154.69,62.37550084]
[1748997031683,22.05550084,154.73,154.69,40.32]
[1748997033919,26.0,154.75,154.69,40.32]
[1748997034111,22.05550084,154.73,154.69,40.32]
[1748997034289,22.05550084,154.7,154.62,26.0]
[1748997034488,22.05550084,154.7,154.65,22.05550084]
[1748997034793,22.05550084,154.71,154.66,22.05550084]
[1748997035014,22.05550084,154.74,154.69,22.05550084]
[1748997036624,0.5,154.73,154.69,22.05550084]
[1748997037393,0.5,154.73,154.7,22.05550084]
[1748997038227,0.5,154.73,154.68,40.3]
[1748997038426,0.5,154.73,154.7,22.05550084]
[1748997038622,0.5,154.73,154.71,22.05550084]
[1748997039124,22.05550084,154.75,154.71,22.05550084]
[1748997039898,22.05550084,154.75,154.64,10.52]
[1748997039899,0.14216157,154.75,154.67,22.05550084]
[1748997040225,22.05550084,154.73,154.68,22.05550084]
[1748997040630,22.05550084,154.72,154.65,40.28]
[1748997040807,0.14216157,154.75,154.65,40.28]
[1748997040808,22.05550084,154.73,154.65,40.28]
[1748997041538,22.05550084,154.74,154.69,22.05550084]
[1748997041714,0.5,154.72,154.68,22.05550084]
[1748997041917,22.05550084,154.73,154.68,22.05550084]
[1748997042226,22.05550084,154.73,154.65,40.28]
[1748997042227,22.05550084,154.74,154.69,22.05550084]
[1748997044726,22.05550084,154.73,154.68,22.05550084]
[1748997045118,22.05550084,154.74,154.69,22.05550084]
[1748997045427,22.05550084,154.73,154.65,40.28]
[1748997045604,22.05550084,154.73,154.68,22.05550084]
[1748997045934,22.05550084,154.74,154.7,22.05550084]
[1748997046126,10.66216157,154.77,154.71,22.05550084]
[1748997046127,10.52,154.77,154.71,22.05550084]
[1748997046333,22.05550084,154.76,154.71,22.05550084]
[1748997047131,22.05550084,154.79,154.74,22.05550084]
[1748997047316,10.80216157,154.81,154.75,22.05550084]
[1748997047317,22.05550084,154.8,154.75,22.05550084]
[1748997051815,10.66,154.81,154.74,22.05550084]
[1748997051816,22.05550084,154.79,154.74,22.05550084]
[1748997052129,10.66,154.81,154.74,22.05550084]
[1748997052130,22.05550084,154.78,154.74,22.05550084]
[1748997052319,22.05550084,154.78,154.73,22.05550084]
[1748997054815,22.05550084,154.78,154.7,26.0]
[1748997055012,22.05550084,154.78,154.73,22.05550084]
[1748997055318,10.66,154.81,154.71,22.05550084]
[1748997055319,22.05550084,154.76,154.71,22.05550084]
[1748997056138,22.05550084,154.75,154.71,22.05550084]
[1748997056648,26.0,154.79,154.73,22.05550084]
[1748997056857,22.05550084,154.78,154.73,22.05550084]
[1748997057060,22.05550084,154.77,154.72,22.05550084]
[1748997057353,22.05550084,154.76,154.72,22.05550084]
[1748997057556,22.05550084,154.74,154.69,22.05550084]
[1748997058031,26.0,154.79,154.68,10.66]
[1748997058032,22.05550084,154.72,154.68,10.66]
[1748997058419,22.05550084,154.72,154.64,18.2939]
[1748997058626,1.6129,154.75,154.64,18.2939]
[1748997058918,22.05550084,154.7,154.66,22.05550084]
[1748997060120,22.05550084,154.7,154.64,58.5339]
[1748997060320,22.05550084,154.7,154.65,22.05550084]
[1748997061153,22.05550084,154.7,154.64,58.5339]
[1748997061449,22.05550084,154.7,154.65,22.05550084]
[1748997063152,22.05550084,154.7,154.64,58.5339]
[1748997063361,22.05550084,154.69,154.64,80.58940084]
[1748997063566,26.0,154.71,154.65,22.05550084]
[1748997063567,22.05550084,154.7,154.65,22.05550084]
[1748997064243,26.0,154.72,154.66,22.05550084]
[1748997064441,8.1596,154.75,154.7,22.05550084]
[1748997064442,22.05550084,154.75,154.7,22.05550084]
[1748997065038,48.05550084,154.75,154.7,22.05550084]
[1748997065259,22.05550084,154.74,154.69,62.27550084]
[1748997065465,22.05550084,154.74,154.69,40.22]
[1748997065640,22.05550084,154.73,154.69,40.22]
[1748997066246,22.05550084,154.73,154.64,18.2939]
[1748997066469,22.05550084,154.7,154.64,18.2939]
[1748997066778,22.05550084,154.69,154.64,32.71550084]
[1748997067067,22.05550084,154.69,154.64,72.95550084]
[1748997067438,22.05550084,154.69,154.64,50.9]
[1748997067840,22.05550084,154.69,154.64,72.95550084]
[1748997068144,27.6129,154.72,154.64,72.95550084]
[1748997068342,22.05550084,154.69,154.64,72.95550084]
[1748997068868,22.05550084,154.65,154.6,10.68]
[1748997069058,26.0,154.69,154.57,70.44220084]
[1748997069059,22.05550084,154.62,154.57,70.44220084]
[1748997069377,22.05550084,154.62,154.57,8.1467]
[1748997069580,22.05550084,154.62,154.58,40.28]
[1748997069748,0.14216157,154.67,154.58,62.35550084]
[1748997069946,22.05550084,154.64,154.59,22.05550084]
[1748997070151,22.05550084,154.65,154.6,22.05550084]
[1748997070382,22.05550084,154.66,154.62,22.05550084]
[1748997070683,22.05550084,154.67,154.62,22.05550084]